bitfinex/quotes_BTCUSD_20251209
["timestamp","ask_amount","ask_price","bid_price","bid_amount"]
[1765296345718,0.59127988,93216.0,93215.0,5.09311498]
[1765296345925,0.58128532,93216.0,93215.0,5.08911498]
[1765296346155,0.58128532,93216.0,93215.0,5.08711498]
[1765296346356,0.60337331,93216.0,93215.0,5.08911498]
[1765296347000,0.60337331,93216.0,93215.0,5.08711498]
[1765296347246,0.60337331,93216.0,93215.0,5.08911498]
[1765296347631,0.60337331,93216.0,93215.0,5.08711498]
[1765296347991,0.60337331,93216.0,93215.0,5.08811498]
[1765296348220,0.62073331,93216.0,93215.0,5.08811498]
[1765296348830,0.59864532,93216.0,93215.0,5.08811498]
[1765296349024,0.59864532,93216.0,93215.0,5.09311498]
[1765296349224,0.59864532,93216.0,93215.0,5.09211498]
[1765296349431,0.59864532,93216.0,93215.0,5.08911498]
[1765296349633,0.62073331,93216.0,93215.0,5.09411498]
[1765296350042,0.62073331,93216.0,93215.0,5.09211498]
[1765296350238,0.62073331,93216.0,93215.0,5.09411498]
[1765296351231,0.62073331,93216.0,93215.0,5.09211498]
[1765296352090,0.62073331,93216.0,93215.0,5.08711498]
[1765296352489,0.62073331,93216.0,93215.0,5.09211498]
[1765296352703,0.62073331,93216.0,93215.0,5.08811498]
[1765296353058,0.62073331,93216.0,93215.0,5.09111498]
[1765296353245,0.73373331,93216.0,93215.0,5.08811498]
[1765296353676,0.73373331,93216.0,93215.0,5.09211498]
[1765296353853,0.73373331,93216.0,93215.0,5.08471498]
[1765296354054,0.73373331,93216.0,93215.0,5.08571498]
[1765296354473,0.62073331,93216.0,93215.0,5.08571498]
[1765296355298,0.62073331,93216.0,93215.0,5.08971498]
[1765296355500,0.62073331,93216.0,93215.0,5.08471498]
[1765296355701,0.62073331,93216.0,93215.0,5.08571498]
[1765296355880,0.58128532,93216.0,93215.0,5.08971498]
[1765296356087,0.59864532,93216.0,93215.0,5.08971498]
[1765296356288,0.59864532,93216.0,93215.0,5.08471498]
[1765296356851,0.59864532,93216.0,93215.0,5.09171498]
[1765296356973,0.62073331,93216.0,93215.0,5.09171498]
[1765296357396,0.59864532,93216.0,93215.0,5.08971498]
[1765296357776,0.60863988,93216.0,93215.0,5.08971498]
[1765296358173,0.60863988,93216.0,93215.0,5.08471498]
[1765296358591,0.30794532,93216.0,93215.0,5.08971498]
[1765296358812,0.33003331,93216.0,93215.0,5.08671498]
[1765296359022,0.30794532,93216.0,93215.0,5.08671498]
[1765296359229,0.30794532,93216.0,93215.0,5.08971498]
[1765296359436,0.30794532,93216.0,93215.0,5.08671498]
[1765296359843,0.33003331,93216.0,93215.0,5.09371498]
[1765296360050,0.33003331,93216.0,93215.0,5.09171498]
[1765296360261,0.62073331,93216.0,93215.0,5.09471498]
[1765296360953,0.62073331,93216.0,93215.0,4.60718626]
[1765296361163,0.84424093,93216.0,93215.0,4.30469312]
[1765296361347,0.84424093,93216.0,93215.0,4.07513195]
[1765296361522,0.84424093,93216.0,93215.0,3.93002105]
[1765296361725,0.84424093,93216.0,93215.0,3.86300679]
[1765296361940,0.84424093,93216.0,93215.0,3.86800679]
[1765296362135,0.24542233,93216.0,93215.0,3.86300679]
[1765296362476,0.22806233,93216.0,93215.0,3.86400679]
[1765296362688,0.24542233,93216.0,93215.0,3.86000679]
[1765296362900,0.30794532,93216.0,93215.0,3.86200679]
[1765296363108,0.24542233,93216.0,93215.0,3.86600679]
[1765296363317,0.24380946,93216.0,93215.0,3.86400679]
[1765296363538,0.00116625,93216.0,93215.0,3.86400679]
[1765296363745,0.00116625,93216.0,93215.0,3.86500679]
[1765296364379,0.21572169,93216.0,93215.0,3.86100679]
[1765296364814,0.21572169,93216.0,93215.0,3.86500679]
[1765296365022,0.23780968,93216.0,93215.0,3.86000679]
[1765296365226,0.23780968,93216.0,93215.0,3.86200679]
[1765296365227,0.50642169,93216.0,93215.0,3.86200679]
[1765296365432,0.50642169,93216.0,93215.0,3.86900679]
[1765296365852,0.50642169,93216.0,93215.0,3.86000679]
[1765296366087,0.21572169,93216.0,93215.0,3.86200679]
[1765296366314,0.21572169,93216.0,93215.0,3.86600679]
[1765296366734,0.21572169,93216.0,93215.0,3.86400679]
[1765296366942,0.28985211,93216.0,93215.0,3.86600679]
[1765296367145,0.30194554,93216.0,93215.0,3.86600679]
[1765296367446,0.30194554,93216.0,93215.0,3.86200679]
[1765296367447,0.70315316,93216.0,93215.0,3.86200679]
[1765296367684,0.67281397,93216.0,93215.0,3.86200679]
[1765296367893,0.67281397,93216.0,93215.0,3.86700679]
[1765296368067,0.67281397,93216.0,93215.0,3.86500679]
[1765296368272,0.70975126,93216.0,93215.0,3.86500679]
[1765296368478,0.70975126,93216.0,93215.0,3.86800679]
[1765296368624,0.73985339,93216.0,93215.0,3.86300679]
[1765296368830,0.7029161,93216.0,93215.0,3.86400679]
[1765296369229,0.67281397,93216.0,93215.0,3.86500679]
[1765296369431,0.73137384,93216.0,93215.0,3.86500679]
[1765296369629,1.56867784,93216.0,93215.0,3.25068419]
[1765296369941,1.56867784,93216.0,93215.0,2.89131024]
[1765296370152,1.67918546,93216.0,93215.0,2.64246648]
[1765296370282,1.67918546,93216.0,93215.0,2.40050172]
[1765296370668,1.67918546,93216.0,93215.0,2.36427812]
[1765296370884,1.03387772,93216.0,93215.0,2.33205452]
[1765296371064,1.03387772,93216.0,93215.0,2.30383092]
[1765296371288,1.03387772,93216.0,93215.0,2.29883092]
[1765296371486,1.06233546,93216.0,93215.0,1.56572639]
[1765296371630,1.06233546,93216.0,93215.0,1.49571279]
[1765296371839,1.06233546,93216.0,93215.0,1.16742001]
[1765296372189,0.89326797,93216.0,93215.0,1.16742001]
[1765296372328,0.9233701,93216.0,93215.0,1.16742001]
[1765296372522,0.9233701,93216.0,93215.0,1.16642001]
[1765296372747,0.95182784,93216.0,93215.0,0.43100427]
[1765296372980,0.95182784,93216.0,93215.0,0.26936559]
[1765296373124,1.06333546,93216.0,93215.0,0.23714199]
[1765296373807,1.06333546,93216.0,93215.0,0.23814199]
[1765296374020,1.06333546,93216.0,93215.0,0.20591789]
[1765296374219,0.21458997,93201.0,93200.0,0.49796]
[1765296374425,2.52322852,93201.0,93200.0,0.49796]
[1765296374557,1.31391127,93201.0,93200.0,0.49796]
[1765296374760,0.99777027,93201.0,93200.0,0.49796]
[1765296374961,0.96766814,93201.0,93200.0,0.49796]
[1765296375514,0.96766814,93201.0,93200.0,0.41839975]
[1765296375515,0.99777027,93201.0,93200.0,0.41839975]
[1765296375682,1.07288603,93201.0,93200.0,0.30424472]
[1765296376000,0.67028328,93201.0,93200.0,0.30324472]
[1765296376201,0.70038541,93201.0,93200.0,0.30324472]
[1765296376503,0.70038541,93201.0,93200.0,0.30260472]
[1765296376681,0.70038541,93201.0,93200.0,0.30360472]
[1765296377006,0.70038541,93201.0,93200.0,0.29960472]
[1765296377217,1.74221003,93201.0,93200.0,0.29960472]
[1765296377469,1.27654803,93201.0,93200.0,0.29960472]
[1765296377672,1.24562803,93201.0,93200.0,0.29960472]
[1765296377884,1.24662803,93201.0,93200.0,0.29860472]
[1765296378256,1.24762803,93201.0,93200.0,0.29860472]
[1765296378452,1.24962803,93201.0,93200.0,0.29860472]
[1765296378822,1.24562803,93201.0,93200.0,0.29860472]
[1765296379027,1.24762803,93201.0,93200.0,0.29860472]
[1765296379359,1.13712041,93201.0,93200.0,0.29860472]
[1765296379559,1.13512041,93201.0,93200.0,0.29860472]
[1765296379753,0.21470354,93152.0,93147.0,0.02159425]
[1765296379937,0.21470354,93152.0,93136.0,0.02809698]
[1765296379938,0.01073548,93149.0,93138.0,0.05490196]
[1765296380139,0.01073629,93142.0,93136.0,0.01736]
[1765296380367,0.01073687,93137.0,93134.0,0.00161861]
[1765296380742,0.01073652,93140.0,93134.0,0.00161861]
[1765296380941,0.01073641,93141.0,93134.0,0.00200953]
[1765296381182,0.01073629,93142.0,93134.0,0.00200953]
[1765296381545,0.001,93142.0,93134.0,0.00200953]
[1765296381743,0.22545656,93145.0,93134.0,0.00200953]
[1765296382059,0.01073583,93146.0,93135.0,0.0107371]
[1765296382287,0.001,93141.0,93134.0,0.00900953]
[1765296382488,0.01073664,93139.0,93134.0,0.00900953]
[1765296382686,0.01073629,93142.0,93134.0,0.00900953]
[1765296382687,0.01073687,93137.0,93134.0,0.00900953]
[1765296382907,0.21474054,93136.0,93134.0,0.01200953]
[1765296383288,0.21635341,93136.0,93134.0,0.00500953]
[1765296384104,0.00161287,93136.0,93134.0,0.00200953]
[1765296384436,0.00161287,93136.0,93134.0,0.01000953]
[1765296384597,0.02073108,93140.0,93134.0,0.01100953]
[1765296384778,0.23681915,93140.0,93134.0,0.01100953]
[1765296385003,0.22547429,93137.0,93134.0,0.01000953]
[1765296385205,0.00999456,93135.0,93134.0,0.01000953]
[1765296385522,0.30069456,93135.0,93134.0,0.01400953]
[1765296385852,0.30069456,93135.0,93134.0,0.01000953]
[1765296386005,0.37581032,93135.0,93134.0,0.01000953]
[1765296386212,0.37581032,93135.0,93134.0,0.01400953]
[1765296386568,0.37581032,93135.0,93134.0,0.00600953]
[1765296386569,0.43833331,93135.0,93134.0,0.00600953]
[1765296386872,0.43833331,93135.0,93134.0,0.01300953]
[1765296387050,0.43833331,93135.0,93134.0,0.00600953]
[1765296387248,0.43833331,93135.0,93134.0,0.01300953]
[1765296387472,0.43833331,93135.0,93134.0,0.00900953]
[1765296387676,0.43833331,93135.0,93134.0,0.01200953]
[1765296387813,0.37581032,93135.0,93134.0,0.01200953]
[1765296388013,0.30230743,93135.0,93134.0,0.00500953]
[1765296388223,0.31966743,93135.0,93134.0,0.00200953]
[1765296388422,0.31966743,93135.0,93134.0,0.00600953]
[1765296388878,0.30230743,93135.0,93134.0,0.00600953]
[1765296389018,0.45887163,93135.0,93134.0,0.00500953]
[1765296389415,0.45887163,93135.0,93134.0,0.00600953]
[1765296389706,0.45887163,93135.0,93134.0,0.00300953]
[1765296389927,0.38219042,93135.0,93134.0,0.00700953]
[1765296390531,0.38219042,93135.0,93134.0,0.00600953]
[1765296390736,0.38219042,93135.0,93134.0,0.00200953]
[1765296390941,0.38219042,93135.0,93134.0,0.00300953]
[1765296391141,0.38219042,93135.0,93134.0,0.00600953]
[1765296391358,0.36483042,93135.0,93134.0,0.00600953]
[1765296391657,0.38219042,93135.0,93134.0,0.00600953]
[1765296392885,0.29231287,93135.0,93134.0,0.00600953]
[1765296393244,0.01897287,93135.0,93134.0,0.00600953]
[1765296393684,0.01736,93135.0,93134.0,0.00600953]
[1765296393928,0.01736,93135.0,93134.0,0.00200953]
[1765296394128,0.00999456,93165.0,93150.0,0.01073537]
[1765296394346,0.00999456,93165.0,93134.0,0.00200953]
[1765296394347,0.00999456,93172.0,93160.0,0.01073422]
[1765296394546,0.11050762,93216.0,93160.0,0.01073422]
[1765296394547,0.01736,93171.0,93161.0,0.0107341]
[1765296394660,0.01736,93171.0,93158.0,0.01073445]
[1765296394867,0.01736,93171.0,93160.0,0.01073422]
[1765296395070,0.01736,93171.0,93161.0,0.21468084]
[1765296395283,0.01736,93171.0,93162.0,0.01073399]
[1765296395683,0.01736,93171.0,93164.0,0.01073375]
[1765296396088,0.24767954,93183.0,93177.0,0.01073226]
[1765296396089,0.00022764,93183.0,93177.0,0.01073226]
[1765296396327,0.00022764,93183.0,93181.0,0.21463518]
[1765296396533,0.0002906,93183.0,93181.0,0.21463518]
[1765296396748,0.0002906,93183.0,93180.0,0.22536791]
[1765296396948,0.0002906,93183.0,93182.0,0.21463372]
[1765296397148,0.0002906,93183.0,93181.0,0.21463488]
[1765296397353,0.0002906,93183.0,93171.0,0.22539124]
[1765296397354,0.0002906,93183.0,93175.0,0.01073249]
[1765296397586,0.0002906,93183.0,93181.0,0.007]
[1765296397795,0.0002906,93183.0,93181.0,0.225635]
[1765296397994,0.0002906,93183.0,93181.0,0.004]
[1765296398210,0.0002906,93183.0,93176.0,0.01073237]
[1765296398416,0.0002906,93183.0,93177.0,0.01073226]
[1765296399045,0.0002906,93183.0,93182.0,0.21463372]
[1765296399483,0.0002906,93183.0,93181.0,0.003]
[1765296399688,0.0002906,93183.0,93177.0,0.01073226]
[1765296399888,0.0002906,93183.0,93182.0,0.21463372]
[1765296400586,0.0002906,93183.0,93182.0,0.22463372]
[1765296400970,0.0002906,93183.0,93182.0,0.24622797]
[1765296401172,0.0002906,93183.0,93182.0,0.015]
[1765296402762,0.0002906,93183.0,93182.0,0.03659425]
[1765296403196,0.0002906,93183.0,93182.0,0.32729425]
[1765296403422,0.01732,93231.0,93221.0,0.01072719]
[1765296403635,6.303e-05,93231.0,93229.0,0.22525135]
[1765296403837,6.303e-05,93231.0,93229.0,0.2468456]
[1765296404038,6.303e-05,93231.0,93230.0,0.21452322]
[1765296404383,6.303e-05,93231.0,93226.0,0.01072662]
[1765296404384,6.303e-05,93231.0,93219.0,0.01072742]
[1765296404584,6.303e-05,93231.0,93226.0,0.21453106]
[1765296404808,6.303e-05,93231.0,93229.0,0.21452363]
[1765296405209,6.303e-05,93231.0,93229.0,0.21452546]
[1765296405588,6.303e-05,93231.0,93229.0,0.23611971]
[1765296405772,6.303e-05,93231.0,93229.0,0.24111971]
[1765296405974,6.303e-05,93231.0,93229.0,0.24311971]
[1765296406233,6.303e-05,93231.0,93230.0,0.02159425]
[1765296406419,6.303e-05,93231.0,93229.0,0.22152546]
[1765296406420,6.303e-05,93231.0,93229.0,0.21652546]
[1765296406605,6.303e-05,93231.0,93230.0,0.02159425]
[1765296407376,0.0002,93250.0,93227.0,0.24257515]
[1765296407377,0.0002,93250.0,93249.0,0.22447765]
[1765296407576,0.0002,93250.0,93249.0,0.21447951]
[1765296407804,0.0002,93250.0,93248.0,0.21448027]
[1765296408397,0.0002,93250.0,93245.0,0.02159425]
[1765296408676,0.0002,93250.0,93220.0,0.42909051]
[1765296408677,0.0002,93250.0,93246.0,0.01072432]
[1765296408846,0.0002,93250.0,93241.0,0.00999814]
[1765296409064,0.0002,93250.0,93239.0,0.01072512]
[1765296409264,0.00167773,93242.0,93240.0,0.01072501]
[1765296409451,0.00181287,93250.0,93240.0,0.01072501]
[1765296409452,0.00181287,93250.0,93248.0,0.21448014]
[1765296409640,0.00181287,93250.0,93248.0,0.007]
[1765296410148,0.00181287,93250.0,93240.0,0.02159425]
[1765296410349,0.00281287,93250.0,93241.0,0.01072489]
[1765296410549,0.00281287,93250.0,93240.0,0.02159425]
[1765296410922,0.52085177,93250.0,93200.0,0.03628997]
[1765296411117,0.01072512,93239.0,93221.0,0.07517879]
[1765296411295,0.01072604,93231.0,93221.0,0.07517879]
[1765296411649,0.01072616,93230.0,93221.0,0.07517879]
[1765296411839,0.00161287,93231.0,93221.0,0.07517879]
[1765296411994,0.00161287,93231.0,93221.0,0.21460536]
[1765296412201,0.00161287,93231.0,93229.0,0.21452365]
[1765296412630,0.0002,93250.0,93248.0,0.007]
[1765296412831,0.00181287,93250.0,93248.0,0.007]
[1765296412990,0.00181287,93250.0,93239.0,0.01072512]
[1765296413192,0.00181287,93250.0,93234.0,0.0107257]
[1765296413403,0.00181287,93250.0,93229.0,0.002]
[1765296413404,0.54293976,93250.0,93229.0,0.002]
[1765296413725,0.00161287,93230.0,93229.0,0.002]
[1765296413931,0.00161287,93230.0,93221.0,6.303e-05]
[1765296413932,0.01072639,93228.0,93221.0,6.303e-05]
[1765296414106,0.01233926,93228.0,93221.0,6.303e-05]
[1765296414298,0.00161287,93228.0,93221.0,6.303e-05]
[1765296415150,0.02208799,93226.0,93221.0,6.303e-05]
[1765296415464,0.00161287,93226.0,93221.0,6.303e-05]
[1765296415636,0.22520679,93248.0,93229.0,0.01072627]
[1765296415837,0.00161287,93237.0,93232.0,0.01072593]
[1765296416046,0.00161287,93237.0,93234.0,0.001]
[1765296416322,0.02208799,93244.0,93221.0,6.303e-05]
[1765296416525,0.02208799,93244.0,93224.0,0.01072685]
[1765296416742,0.5192389,93250.0,93221.0,0.00606303]
[1765296416743,0.01072524,93238.0,93221.0,0.00606303]
[1765296416954,0.0107257,93234.0,93221.0,0.00206303]
[1765296417159,0.01072639,93228.0,93221.0,6.303e-05]
[1765296417371,0.01072558,93235.0,93221.0,6.303e-05]
[1765296417776,0.08584123,93236.0,93221.0,6.303e-05]
[1765296417922,0.02208799,93234.0,93227.0,0.0107265]
[1765296418125,0.00999456,93241.0,93224.0,0.01072685]
[1765296418323,0.00999456,93241.0,93226.0,0.01072662]
[1765296418592,0.01072501,93240.0,93223.0,0.01072696]
[1765296419107,0.01072604,93231.0,93221.0,0.00306303]
[1765296419344,0.02208799,93237.0,93226.0,0.01072662]
[1765296419541,0.01072547,93236.0,93226.0,0.001]
[1765296419756,0.01072558,93235.0,93226.0,0.001]
[1765296419956,0.0207198,93238.0,93221.0,0.01240309]
[1765296420174,0.00999456,93238.0,93223.0,0.001]
[1765296420543,0.01732,93243.0,93223.0,0.00161287]
[1765296420747,0.01732,93243.0,93235.0,0.01072558]
[1765296420953,0.0002,93250.0,93248.0,0.21448098]
[1765296421170,0.0002,93250.0,93248.0,0.21609385]
[1765296421566,0.00187664,93249.0,93248.0,0.22609199]
[1765296421828,0.00187664,93249.0,93248.0,0.00161287]
[1765296422122,0.00187664,93249.0,93234.0,0.0107257]
[1765296422335,0.0002,93250.0,93234.0,0.00161287]
[1765296422467,0.0002,93250.0,93237.0,0.01072535]
[1765296422676,0.0002,93250.0,93246.0,0.01072432]
[1765296422923,0.002,93249.0,93238.0,0.21450481]
[1765296423165,0.21451685,93233.0,93221.0,6.303e-05]
[1765296423370,0.002,93249.0,93221.0,6.303e-05]
[1765296423371,0.01072685,93224.0,93221.0,6.303e-05]
[1765296423581,0.0107265,93227.0,93221.0,6.303e-05]
[1765296423782,0.06252299,93240.0,93222.0,0.01072708]
[1765296423985,0.01072501,93240.0,93222.0,0.21454072]
[1765296424227,0.01072604,93231.0,93221.0,6.303e-05]
[1765296424433,0.02208799,93228.0,93221.0,6.303e-05]
[1765296425072,1.07304251,93280.0,93228.0,0.01072639]
[1765296425073,0.2907,93245.0,93228.0,0.01072639]
[1765296425214,0.02208799,93246.0,93232.0,0.01072593]
[1765296425554,0.22520644,93248.0,93231.0,0.01072604]
[1765296425735,0.30142432,93246.0,93229.0,0.01072627]
[1765296425953,0.10959958,93245.0,93221.0,0.0016759]
[1765296426153,0.22525107,93230.0,93221.0,6.303e-05]
[1765296426358,0.01072639,93228.0,93221.0,6.303e-05]
[1765296426693,0.02208799,93229.0,93221.0,6.303e-05]
[1765296427097,0.01072673,93225.0,93221.0,6.303e-05]
[1765296427298,0.01072662,93226.0,93221.0,6.303e-05]
[1765296427499,0.02208799,93222.0,93221.0,6.303e-05]
[1765296428687,0.00110924,93222.0,93221.0,0.00606303]
[1765296428876,0.00110924,93222.0,93221.0,0.00206303]
[1765296429073,0.00110924,93222.0,93221.0,6.303e-05]
[1765296429345,0.02319723,93222.0,93221.0,0.00506303]
[1765296429620,0.02319723,93222.0,93221.0,0.00806303]
[1765296429791,0.37642022,93222.0,93221.0,0.00806303]
[1765296429993,0.37642022,93222.0,93221.0,6.303e-05]
[1765296430362,0.36432679,93222.0,93221.0,0.00506303]
[1765296430619,0.37642022,93222.0,93221.0,0.00506303]
[1765296431763,0.37642022,93222.0,93221.0,0.00306303]
[1765296431967,0.08572022,93222.0,93221.0,0.00606303]
[1765296432239,0.08572022,93222.0,93185.0,0.03628997]
[1765296432240,0.00110924,93222.0,93211.0,0.01072834]
[1765296432430,0.01732,93230.0,93219.0,0.01072742]
[1765296432770,0.02804616,93230.0,93215.0,0.01072788]
[1765296432954,0.001,93222.0,93211.0,0.00161287]
[1765296433188,0.00093866,93216.0,93211.0,0.00161287]
[1765296433395,0.01072811,93213.0,93195.0,0.01073018]
[1765296433599,0.00082492,93212.0,93200.0,0.01072961]
[1765296433832,0.01072823,93212.0,93196.0,0.01073007]
[1765296434028,0.01072846,93210.0,93195.0,0.00173015]
[1765296434182,0.01072926,93203.0,93195.0,0.00173015]
[1765296434367,0.22531138,93205.0,93195.0,0.00011728]
[1765296434582,0.01072926,93203.0,93195.0,0.00011728]
[1765296434978,0.22531055,93205.0,93195.0,0.00011728]
[1765296435180,0.22531741,93202.0,93195.0,0.00011728]
[1765296435392,0.36223479,93196.0,93195.0,0.00011728]
[1765296435590,0.36223479,93196.0,93195.0,0.00111728]
[1765296435795,0.36223479,93196.0,93195.0,0.00211728]
[1765296435991,0.36223479,93196.0,93195.0,0.00111728]
[1765296436251,0.36223479,93196.0,93195.0,0.00011728]
[1765296436443,0.47274241,93196.0,93195.0,0.00211728]
[1765296436616,0.47274241,93196.0,93195.0,0.00176375]
[1765296436617,0.76344241,93196.0,93195.0,0.00176375]
[1765296436986,0.01073445,93158.0,93143.0,0.01073617]
[1765296437173,0.01732,93159.0,93143.0,0.00039092]
[1765296437396,0.02208799,93155.0,93143.0,0.00200379]
[1765296437783,0.2907,93152.0,93143.0,0.00039092]
[1765296437996,0.02208799,93149.0,93143.0,0.00039092]
[1765296438222,0.2907,93152.0,93143.0,0.00039092]
[1765296438767,0.02208799,93150.0,93143.0,0.00039092]
[1765296438974,0.02208799,93148.0,93143.0,0.00039092]
[1765296439200,0.07511576,93144.0,93143.0,0.00239092]
[1765296439404,0.07511576,93144.0,93142.0,0.00161842]
[1765296439613,0.07550689,93144.0,93142.0,0.00161842]
[1765296439818,0.07550689,93144.0,93143.0,0.002]
[1765296440022,0.09759488,93144.0,93143.0,0.002]
[1765296440224,0.02208799,93143.0,93142.0,0.00161842]
[1765296440731,0.37531098,93143.0,93142.0,0.00161842]
[1765296441916,0.36521755,93143.0,93142.0,0.00161842]
[1765296442384,0.30069456,93143.0,93142.0,0.00161842]
[1765296442678,0.01932,93143.0,93142.0,0.00161842]
[1765296442909,0.006,93143.0,93142.0,0.00323129]
[1765296443123,0.002,93143.0,93142.0,0.00323129]
[1765296443353,0.002,93143.0,93142.0,0.00161842]
[1765296443354,0.02608799,93143.0,93142.0,0.00161842]
[1765296443614,0.64695578,93143.0,93142.0,0.00161842]
[1765296443819,0.37731098,93143.0,93142.0,0.00161842]
[1765296444041,0.31278799,93143.0,93142.0,0.00361842]
[1765296444258,0.37631098,93143.0,93142.0,0.00361842]
[1765296444952,0.45042674,93143.0,93142.0,0.00361842]
[1765296445176,0.45042674,93143.0,93142.0,0.00161842]
[1765296445423,0.45242674,93143.0,93142.0,0.00161842]
[1765296445726,0.45442674,93143.0,93142.0,0.00161842]
[1765296445934,0.37781032,93143.0,93142.0,0.00161842]
[1765296446165,0.2937,93143.0,93142.0,0.00161842]
[1765296446395,0.30169456,93143.0,93142.0,0.00161842]
[1765296446660,0.30569456,93143.0,93142.0,0.00161842]
[1765296446945,0.31378799,93143.0,93142.0,0.00161842]
[1765296447152,0.2937,93143.0,93142.0,0.00161842]
[1765296447381,0.35522299,93143.0,93142.0,0.00161842]
[1765296447607,0.5909357,93143.0,93142.0,0.00161842]
[1765296448324,0.7030357,93143.0,93142.0,0.00161842]
[1765296448517,0.7030357,93143.0,93142.0,0.00261842]
[1765296448954,0.7010357,93143.0,93142.0,0.00261842]
[1765296449178,0.7010357,93143.0,93142.0,0.00161842]
[1765296449432,0.81254332,93143.0,93142.0,0.00161842]
[1765296449643,0.81154332,93143.0,93142.0,0.00161842]
[1765296449831,0.81354332,93143.0,93142.0,0.00161842]
[1765296450255,0.81154332,93143.0,93142.0,0.00161842]
[1765296450501,0.81254332,93143.0,93142.0,0.00161842]
[1765296450683,0.81354332,93143.0,93142.0,0.00161842]
[1765296450854,1.55852303,93143.0,93142.0,0.00161842]
[1765296451263,1.37007928,93143.0,93142.0,0.00161842]
[1765296451440,1.24989928,93143.0,93142.0,0.00161842]
[1765296451642,1.17372528,93143.0,93142.0,0.00161842]
[1765296451885,1.02413028,93143.0,93142.0,0.00161842]
[1765296452223,1.02813028,93143.0,93142.0,0.00161842]
[1765296452742,0.88923028,93143.0,93142.0,0.00161842]
[1765296452966,0.66562266,93143.0,93142.0,0.00161842]
[1765296453167,0.30669456,93143.0,93142.0,0.00161842]
[1765296453405,0.30269456,93143.0,93142.0,0.00161842]
[1765296453602,0.30069456,93143.0,93142.0,0.00161842]
[1765296453831,0.38353755,93143.0,93142.0,0.00161842]
[1765296454036,0.38253755,93143.0,93142.0,0.00161842]
[1765296454580,0.38053755,93143.0,93142.0,0.00161842]
[1765296454897,0.38253755,93143.0,93142.0,0.00161842]
[1765296455278,0.49563755,93143.0,93142.0,0.00161842]
[1765296455707,0.49363755,93143.0,93142.0,0.00161842]
[1765296456131,0.49563755,93143.0,93142.0,0.00161842]
[1765296456450,0.49363755,93143.0,93142.0,0.00161842]
[1765296456686,0.59926114,93143.0,93142.0,0.00161842]
[1765296457339,0.59726114,93143.0,93142.0,0.00161842]
[1765296457508,0.59926114,93143.0,93142.0,0.00161842]
[1765296458049,0.82086876,93143.0,93142.0,0.00161842]
[1765296458881,0.82286876,93143.0,93142.0,0.00161842]
[1765296459061,0.82086876,93143.0,93142.0,0.00161842]
[1765296459259,0.59726114,93143.0,93142.0,0.00161842]
[1765296459519,0.59926114,93143.0,93142.0,0.00161842]
[1765296459703,0.59726114,93143.0,93142.0,0.00161842]
[1765296459855,0.59926114,93143.0,93142.0,0.00161842]
[1765296460056,0.71236114,93143.0,93142.0,0.00161842]
[1765296460287,0.82286876,93143.0,93142.0,0.00161842]
[1765296460442,0.82086876,93143.0,93142.0,0.00161842]
[1765296460651,0.82286876,93143.0,93142.0,0.00161842]
[1765296461350,0.59726114,93143.0,93142.0,0.00161842]
[1765296461800,0.59926114,93143.0,93142.0,0.00161842]
[1765296462005,0.38453755,93143.0,93142.0,0.00161842]
[1765296462208,0.24603815,93143.0,93142.0,0.00161842]
[1765296462414,0.03131456,93143.0,93142.0,0.00161842]
[1765296462605,0.38053755,93143.0,93142.0,0.00161842]
[1765296462760,0.07550689,93144.0,93142.0,0.00161842]
[1765296462761,0.00039113,93144.0,93142.0,0.00161842]
[1765296463062,0.33324734,93143.0,93142.0,0.00161842]
[1765296463272,0.70094724,93143.0,93142.0,0.00161842]
[1765296463434,0.81404724,93143.0,93142.0,0.00161842]
[1765296463636,0.81204724,93143.0,93142.0,0.00161842]
[1765296464486,0.81004724,93143.0,93142.0,0.00161842]
[1765296465320,0.81204724,93143.0,93142.0,0.00161842]
[1765296465642,0.7854769,93143.0,93142.0,0.00161842]
[1765296465863,0.45965331,93143.0,93142.0,0.00161842]
[1765296466727,0.39713032,93143.0,93142.0,0.00161842]
[1765296466917,0.38713576,93143.0,93142.0,0.00161842]
[1765296467113,0.2947,93143.0,93142.0,0.00161842]
[1765296467320,0.31678799,93143.0,93142.0,0.00161842]
[1765296467564,0.33410799,93143.0,93142.0,0.00161842]
[1765296468447,0.61135457,93143.0,93142.0,0.00161842]
[1765296469319,0.61135457,93143.0,93142.0,0.00058842]
[1765296469536,0.72445457,93143.0,93142.0,0.00058842]
[1765296472442,0.61135457,93143.0,93142.0,0.00058842]
[1765296472984,0.39663098,93143.0,93142.0,0.00058842]
[1765296473194,0.31202,93143.0,93142.0,0.00058842]
[1765296473420,0.02132,93143.0,93142.0,0.00058842]
[1765296473648,0.02132,93143.0,93142.0,0.00220129]
[1765296474119,0.004,93143.0,93142.0,0.00220129]
[1765296474593,0.004,93143.0,93142.0,0.02379554]
[1765296474817,0.01732,93164.0,93142.0,0.02379554]
[1765296474818,0.01732,93164.0,93161.0,0.0107341]
[1765296475050,0.01732,93164.0,93163.0,0.21629037]
[1765296475257,0.01732,93164.0,93163.0,0.00161287]
[1765296476340,0.01732,93164.0,93163.0,0.00561287]
[1765296476546,0.01732,93164.0,93163.0,0.00161287]
[1765296476780,0.01732,93164.0,93163.0,0.00361287]
[1765296477838,0.01732,93164.0,93163.0,0.00661287]
[1765296478037,0.01732,93164.0,93163.0,0.21929037]
[1765296478188,0.01732,93164.0,93163.0,0.00761287]
[1765296478609,0.01732,93164.0,93163.0,0.00461287]
[1765296478990,0.01732,93164.0,93163.0,0.00661287]
[1765296479188,0.002598,93164.0,93163.0,0.00661287]
[1765296479416,0.01732,93172.0,93163.0,0.00461287]
[1765296479617,0.01732,93172.0,93163.0,0.00161287]
[1765296479790,0.00999456,93170.0,93163.0,0.00361287]
[1765296480192,0.2907,93168.0,93163.0,0.00361287]
[1765296480399,0.01073341,93167.0,93163.0,0.00361287]
[1765296480597,0.00999456,93170.0,93163.0,0.00361287]
[1765296480801,0.2907,93169.0,93163.0,0.00361287]
[1765296480999,0.00999456,93170.0,93163.0,0.00561287]
[1765296481207,0.01732,93172.0,93163.0,0.00561287]
[1765296481208,0.02204595,93166.0,93163.0,0.00161287]
[1765296481403,0.01732,93172.0,93163.0,0.00261287]
[1765296481605,0.00022762,93191.0,93190.0,0.2146153]
[1765296481791,0.00022762,93191.0,93190.0,0.00161287]
[1765296482822,0.00222762,93191.0,93190.0,0.00161287]
[1765296483612,0.00322762,93191.0,93190.0,0.00161287]
[1765296484225,0.00122762,93191.0,93190.0,0.00161287]
[1765296484434,0.00122762,93191.0,93190.0,0.21622817]
[1765296484653,0.00122762,93191.0,93190.0,0.00661287]
[1765296484872,0.02227357,93191.0,93190.0,0.00161287]
[1765296485077,0.02227357,93191.0,93190.0,0.00361287]
[1765296485078,0.00022762,93191.0,93190.0,0.00361287]
[1765296485286,0.30092218,93191.0,93190.0,0.006]
[1765296485490,0.01073203,93179.0,93159.0,0.01073433]
[1765296485715,0.21463615,93181.0,93159.0,0.01073433]
[1765296485716,0.21463615,93181.0,93162.0,0.01073399]
[1765296485717,0.00999456,93181.0,93162.0,0.01073399]
[1765296485924,0.00999456,93181.0,93159.0,0.00167583]